bitfinex-derivatives/quotes_SOLF0:USTF0_20250818
["timestamp","ask_amount","ask_price","bid_price","bid_amount"]
[1755498726507,3.0,181.4,181.22,1.6]
[1755498726805,3.0,181.38,181.26,1.6]
[1755498727008,3.0,181.36,181.26,1.6]
[1755498727301,3.0,181.34,181.29,7.1121]
[1755498728596,3.0,181.34,181.3,5.5121]
[1755498728906,150.16136422,181.42,181.25,5.67416005]
[1755498729206,3.0,181.33,181.31,7.1116]
[1755498730000,144.04,181.42,181.31,1.6]
[1755498730201,3.0,181.32,181.3,7.1121]
[1755498730598,3.0,181.32,181.3,1.6]
[1755498732005,147.68636215,181.42,181.28,3.64636215]
[1755498732212,3.0,181.33,181.31,1.6]
[1755498732608,3.0,181.41,181.31,1.6]
[1755498732802,3.0,181.39,181.31,1.6]
[1755498733012,3.0,181.37,181.31,1.6]
[1755498735204,370.62,181.43,181.32,1.6]
[1755498735406,3.0,181.41,181.35,1.6]
[1755498735611,4.18322693,181.4,181.34,9.15726215]
[1755498735914,3.0,181.38,181.36,1.6]
[1755498736207,3.0,181.37,181.35,1.6]
[1755498736513,3.0,181.36,181.35,1.6]
[1755498737510,3.0,181.42,181.31,5.24636215]
[1755498737708,3.0,181.4,181.31,5.24636215]
[1755498737910,4.17431192,181.39,181.31,1.6]
[1755498738211,7.17482925,181.38,181.29,1.6]
[1755498738411,3.0,181.37,181.29,1.6]
[1755498738808,3.0,181.37,181.31,5.5118]
[1755498739009,3.0,181.37,181.31,7.1118]
[1755498740812,3.0,181.37,181.31,1.6]
[1755498741517,3.0,181.37,181.31,7.1118]
[1755498743712,3.0,181.37,181.32,7.1215]
[1755498744319,3.0,181.37,181.31,5.5118]
[1755498745721,2.91,181.36,181.33,1.61]
[1755498746021,2.91,181.42,181.34,1.61]
[1755498746720,2.91,181.42,181.34,7.1208]
[1755498746921,2.91,181.42,181.28,5.67279247]
[1755498747123,2.91,181.42,181.35,1.61]
[1755498749426,2.91,181.42,181.31,1.61]
[1755498749616,4.17309781,181.41,181.31,1.61]
[1755498749816,2.91,181.4,181.31,1.61]
[1755498750921,4.17338023,181.39,181.31,1.61]
[1755498751222,2.91,181.38,181.3,1.61]
[1755498751729,2.91,181.42,181.34,1.61]
[1755498752029,2.91,181.4,181.32,1.61]
[1755498752218,2.91,181.4,181.3,1.61]
[1755498752418,2.91,181.4,181.31,5.5118]
[1755498752721,2.91,181.4,181.31,1.61]
[1755498752924,2.91,181.4,181.32,5.5113]
[1755498753128,2.91,181.4,181.33,1.61]
[1755498754024,2.91,181.4,181.32,5.5113]
[1755498754823,2.91,181.4,181.32,7.1213]
[1755498755832,2.91,181.4,181.32,5.5113]
[1755498756540,2.91,181.4,181.33,5.5112]
[1755498756738,2.91,181.4,181.32,1.61]
[1755498756932,2.91,181.38,181.3,1.61]
[1755498757134,2.91,181.38,181.31,5.5117]
[1755498757331,2.91,181.38,181.3,1.61]
[1755498757526,2.91,181.38,181.24,5.67279247]
[1755498757729,19.46,181.36,181.21,1.61]
[1755498757934,2.91,181.34,181.21,1.61]
[1755498758134,2.91,181.32,181.21,1.61]
[1755498758336,6.56121819,181.3,181.21,1.61]
[1755498758533,2.91,181.28,181.19,1.61]
[1755498759237,2.91,181.29,181.22,1.61]
[1755498759440,2.91,181.27,181.22,1.61]
[1755498759638,2.91,181.26,181.22,1.61]
[1755498759843,3.65121819,181.33,181.24,1.61]
[1755498760138,2.91,181.28,181.22,3.65121819]
[1755498760439,2.91,181.28,181.26,1.61]
[1755498760940,370.34,181.37,181.27,1.61]
[1755498761236,2.91,181.35,181.28,1.61]
[1755498761439,2.91,181.33,181.29,5.5123]
[1755498761633,2.91,181.32,181.24,5.67588042]
[1755498761835,2.91,181.36,181.24,5.67588042]
[1755498762144,2.91,181.34,181.25,1.61]
[1755498762338,2.91,181.32,181.25,1.61]
[1755498762636,2.91,181.3,181.25,1.61]
[1755498762841,2.91,181.3,181.21,1.61]
[1755498763139,4.20098361,181.29,181.23,1.61]
[1755498763340,2.91,181.28,181.23,1.61]
[1755498763741,6.12136422,181.35,181.22,5.5143]
[1755498763941,2.91,181.33,181.21,1.61]
[1755498764138,2.91,181.31,181.21,1.61]
[1755498764435,2.91,181.29,181.17,1.61]
[1755498764640,2.91,181.27,181.17,1.61]
[1755498764836,2.91,181.25,181.12,149.23588042]
[1755498765039,4.20160361,181.24,181.13,1.61]
[1755498765241,6.12136422,181.28,181.13,1.61]
[1755498765242,7.11160361,181.23,181.13,1.61]
[1755498765542,2.91,181.21,181.15,7.1267]
[1755498765744,2.91,181.21,181.15,1.61]
[1755498766442,9.03136422,181.28,181.15,1.61]
[1755498766637,2.91,181.26,181.15,1.61]
[1755498766838,2.91,181.24,181.18,1.61]
[1755498767744,2.91,181.24,181.19,5.5154]
[1755498767945,143.48,181.31,181.2,1.61]
[1755498768144,2.91,181.22,181.2,1.61]
[1755498768344,2.91,181.21,181.17,1.61]
[1755498768544,2.91,181.3,181.17,1.61]
[1755498768748,2.91,181.28,181.17,1.61]
[1755498769044,2.91,181.26,181.17,7.126]
[1755498769248,2.91,181.24,181.17,7.126]
[1755498769445,2.91,181.24,181.17,1.61]
[1755498769843,4.19483204,181.23,181.17,1.61]
[1755498770042,2.91,181.22,181.17,7.1259]
[1755498770243,149.58136422,181.31,181.18,1.61]
[1755498770449,2.91,181.29,181.18,7.1258]
[1755498770654,2.91,181.27,181.18,1.61]
[1755498770845,2.91,181.25,181.18,1.61]
[1755498771144,2.91,181.25,181.21,1.61]
[1755498772950,2.91,181.25,181.19,5.5154]
[1755498773162,2.91,181.25,181.16,1.6]
[1755498773451,2.97,181.23,181.16,1.6]
[1755498774053,2.97,181.21,181.13,1.6]
[1755498774445,2.97,181.21,181.14,5.5169]
[1755498775850,2.97,181.21,181.15,5.5167]
[1755498777153,2.97,181.21,181.16,7.1163]
[1755498778252,2.97,181.21,181.17,5.5161]
[1755498778453,2.97,181.21,181.16,1.6]
[1755498778649,2.97,181.21,181.16,7.1161]
[1755498779353,2.97,181.21,181.15,5.5166]
[1755498779955,2.97,181.21,181.13,1.6]
[1755498781655,16.55,181.29,181.17,7.1159]
[1755498781950,2.97,181.27,181.17,7.1159]
[1755498782154,2.97,181.25,181.17,7.1159]
[1755498782350,2.97,181.23,181.17,7.1159]
[1755498782857,2.97,181.23,181.15,5.5166]
[1755498783048,2.97,181.23,181.14,1.6]
[1755498784350,2.97,181.23,181.15,5.5166]
[1755498784652,2.97,181.23,181.14,1.6]
[1755498784851,2.97,181.23,181.12,143.56]
[1755498784852,2.97,181.23,181.16,5.5164]
[1755498785048,2.97,181.23,181.12,145.16]
[1755498785248,2.97,181.23,181.13,5.5171]
[1755498785443,22.22588042,181.28,181.12,1.6]
[1755498785444,4.15249374,181.22,181.12,1.6]
[1755498785749,2.97,181.21,181.1,1.6]
[1755498786349,2.97,181.21,181.12,5.5175]
[1755498786948,2.97,181.21,181.11,7.1178]
[1755498787147,2.97,181.21,181.06,143.32]
[1755498787349,4.15098209,181.2,181.07,1.6]
[1755498787554,2.97,181.18,181.07,1.6]
[1755498787752,2.97,181.18,181.06,142.92]
[1755498788152,2.97,181.18,181.09,5.5182]
[1755498788352,2.97,181.18,181.06,142.92]
[1755498788555,2.97,181.18,181.0,370.64]
[1755498788556,2.97,181.16,181.0,376.31588042]
[1755498788854,2.97,181.16,181.0,370.64]
[1755498789052,2.97,181.14,181.0,376.31588042]
[1755498789546,2.97,181.14,181.0,370.64]
[1755498789750,2.97,181.14,181.05,5.5195]
[1755498789951,2.97,181.14,181.0,376.31588042]
[1755498790351,2.97,181.14,181.04,5.5199]
[1755498790543,2.97,181.14,181.0,376.31588042]
[1755498791051,2.97,181.14,181.04,5.52]
[1755498791556,2.97,181.14,181.0,376.31588042]
[1755498792059,2.97,181.14,181.0,370.64]
[1755498792554,2.97,181.14,181.0,376.31588042]
[1755498793145,2.97,181.14,181.07,5.5189]
[1755498794548,4.14680476,181.13,181.07,5.5189]
[1755498794755,2.97,181.11,181.0,376.31588042]
[1755498795559,2.97,181.11,181.04,5.67588042]
[1755498795962,2.97,181.11,181.09,5.5184]
[1755498796154,2.97,181.1,181.04,5.67588042]
[1755498796656,2.97,181.1,181.0,519.55588042]
[1755498797659,2.97,181.12,181.04,5.67588042]
[1755498798261,0.96107375,181.2,181.09,5.5184]
[1755498798461,2.97,181.11,181.04,5.67588042]
[1755498798962,2.97,181.11,181.06,5.5194]
[1755498799361,2.97,181.11,181.04,5.67588042]
[1755498800457,2.97,181.1,180.81,370.82]
[1755498800662,16.56,181.11,180.91,5.67588042]
[1755498800663,2.97,181.08,180.91,5.67588042]
[1755498800863,2.97,181.06,180.91,5.67588042]
[1755498801167,2.97,181.04,180.92,143.2]
[1755498801365,4.13665324,181.03,180.95,5.5226]
[1755498801566,2.97,181.02,180.95,5.5226]
[1755498801767,2.97,181.02,180.92,143.2]
[1755498801965,2.97,181.02,180.96,5.5223]
[1755498802166,2.97,181.02,180.92,143.2]
[1755498802567,2.97,181.02,180.97,5.522]
[1755498802863,2.97,181.02,180.92,143.2]
[1755498803264,2.97,181.02,180.95,5.5226]
[1755498803567,2.97,181.02,180.92,143.2]
[1755498804469,2.97,181.02,180.96,5.5223]
[1755498805171,2.97,181.02,180.97,5.5221]
[1755498805365,2.97,181.02,180.92,143.2]
[1755498805766,2.97,181.02,180.98,5.5216]
[1755498807566,2.97,181.02,180.92,143.2]
[1755498807768,2.99,181.0,180.92,143.2]
[1755498808675,2.99,180.98,180.92,143.2]
[1755498809065,8.5119,180.98,180.95,5.5226]
[1755498809267,2.99,180.97,180.92,143.2]
[1755498809468,2.99,180.97,180.82,5.67588042]
[1755498809673,2.99,180.95,180.83,143.2]
[1755498810681,2.99,180.95,180.88,5.5247]
[1755498810877,4.12095885,180.94,180.83,143.2]
[1755498811079,148.87588042,181.16,180.83,143.2]
[1755498811080,2.99,180.92,180.83,143.2]
[1755498811273,2.99,180.92,180.85,5.5258]
[1755498811480,2.99,180.92,180.83,143.2]
[1755498812681,2.99,180.92,180.85,5.5257]
[1755498812881,2.99,180.92,180.77,143.2]
[1755498814490,2.99,180.92,180.83,5.5262]
[1755498814884,2.99,180.92,180.77,143.2]
[1755498815391,2.99,180.9,180.77,143.2]
[1755498816490,5.5247,180.89,180.78,5.67588042]
[1755498816685,2.99,180.95,180.78,5.67588042]
[1755498816990,2.99,180.93,180.77,148.87588042]
[1755498817186,2.99,180.91,180.77,148.87588042]
[1755498817583,2.99,180.91,180.88,5.5248]
[1755498817985,2.99,180.91,180.81,5.67588042]
[1755498818187,2.99,180.91,180.9,5.5243]
[1755498818584,2.99,180.91,180.81,5.67588042]
[1755498818791,2.99,180.9,180.81,5.67588042]
[1755498818990,2.99,180.9,180.79,5.67588042]
[1755498819893,2.99,180.9,180.83,5.67588042]
[1755498820084,2.99,180.92,180.83,5.67588042]
[1755498820286,2.99,180.94,180.83,5.67588042]
[1755498820485,2.99,180.94,180.87,5.67588042]
[1755498820684,2.99,180.96,180.85,143.24]
[1755498820885,2.99,180.98,180.9,5.67588042]
[1755498821089,371.2,181.07,180.9,5.67588042]
[1755498821289,2.99,181.0,180.98,5.5217]
[1755498821489,11.79724464,181.15,180.94,5.67588042]
[1755498821686,2.99,181.04,180.94,5.67588042]
[1755498822091,2.99,181.04,180.93,143.24]
[1755498822291,2.99,181.04,180.97,5.67588042]
[1755498822491,2.99,181.14,180.97,5.67588042]
[1755498822685,2.99,181.12,180.97,5.67588042]
[1755498822893,2.99,181.1,180.99,5.5213]
[1755498823094,2.99,181.08,180.99,5.5213]
[1755498823392,2.99,181.06,180.99,5.5213]
[1755498823598,2.99,181.06,180.93,148.91588042]
[1755498823896,2.99,181.04,180.93,148.91588042]
[1755498824396,2.99,181.07,180.97,5.67588042]
[1755498824597,2.99,181.06,181.02,5.5205]
[1755498824900,5.67588042,181.15,180.97,5.67588042]
[1755498824901,2.99,181.05,180.97,5.67588042]
[1755498825096,2.99,181.16,180.97,5.67588042]
[1755498825391,5.5181,181.11,181.01,5.67588042]
[1755498825598,2.99,181.1,181.05,5.5195]
[1755498825787,2.99,181.08,181.05,5.5195]
[1755498825992,2.99,181.16,181.01,5.67588042]
[1755498826192,5.519,181.08,181.03,5.5203]
[1755498826492,2.99,181.06,180.97,5.67588042]
[1755498826692,2.99,181.06,181.02,5.5205]
[1755498826888,2.99,181.05,181.02,5.5205]
[1755498827093,2.99,181.05,180.97,5.67588042]
[1755498827390,2.99,181.16,181.01,5.67588042]
[1755498827794,2.99,181.16,181.09,5.5183]
[1755498827997,2.99,181.16,181.05,5.67588042]
[1755498828295,2.99,181.16,181.09,5.5183]
[1755498828998,2.99,181.16,181.08,5.5187]
[1755498829296,2.99,181.16,181.03,143.18]
[1755498829901,2.99,181.16,181.06,5.67588042]
[1755498830406,2.99,181.19,181.06,5.67588042]
[1755498830908,2.99,181.19,181.1,5.5179]
[1755498831201,2.99,181.19,181.05,5.67588042]
[1755498832005,2.99,181.19,181.1,5.5181]
[1755498832401,2.99,181.19,181.05,5.67588042]
[1755498832705,2.99,181.19,181.12,5.5175]
[1755498832899,2.99,181.19,181.05,5.67588042]
[1755498833100,2.99,181.19,181.1,5.5179]
[1755498833300,2.99,181.19,181.05,5.67588042]
[1755498834000,2.99,181.19,181.03,5.67588042]
[1755498834602,4.10639315,181.18,181.03,5.67588042]
[1755498834799,2.99,181.19,181.03,5.67588042]
[1755498834997,3.04,181.17,181.03,5.67588042]
[1755498835301,3.04,181.17,181.1,5.5182]
[1755498835802,3.04,181.17,181.08,5.5185]
[1755498836197,3.04,181.17,181.03,5.67588042]
[1755498837004,3.04,181.17,181.1,5.5181]
[1755498837204,3.04,181.17,181.03,5.67588042]
[1755498837404,3.04,181.17,181.07,5.67588042]
[1755498837605,3.04,181.16,181.13,5.5171]
[1755498837904,3.04,181.15,181.07,5.67588042]
[1755498838106,3.04,181.14,181.12,5.5175]
[1755498838299,108.03358692,181.23,181.07,5.67588042]
[1755498838504,3.04,181.16,181.07,5.67588042]
[1755498838907,3.04,181.16,181.02,16.71698042]
[1755498839696,3.04,181.16,181.08,5.67588042]
[1755498840009,3.04,181.21,181.08,5.67588042]
[1755498840505,6.12136422,181.32,181.12,5.67588042]
[1755498840708,7.14265197,181.31,181.16,5.67588042]
[1755498840905,4.10265197,181.3,181.22,5.5143]
[1755498841107,3.04,181.29,181.16,5.67588042]
[1755498841609,3.04,181.29,181.23,5.514]
[1755498841806,3.04,181.29,181.16,5.67588042]
[1755498842003,3.04,181.29,181.2,5.67588042]
[1755498842512,3.04,181.29,181.27,5.5129]
[1755498842701,3.04,181.31,181.24,5.67588042]
[1755498843106,3.04,181.31,181.3,5.5121]
[1755498843404,3.04,181.4,181.28,5.67588042]
[1755498843718,3.04,181.4,181.32,5.5112]
[1755498844016,3.04,181.4,181.32,5.67588042]
[1755498844517,3.04,181.4,181.28,5.67588042]
[1755498845410,3.04,181.4,181.32,5.5113]
[1755498845611,3.04,181.4,181.28,5.67588042]
[1755498846010,3.04,181.4,181.31,5.5118]
[1755498846410,3.04,181.4,181.29,5.67588042]
[1755498846604,3.04,181.4,181.33,5.67588042]
[1755498846808,3.04,181.42,181.37,5.67588042]
[1755498847115,3.04,181.41,181.37,5.67588042]
[1755498847412,0.95940451,181.52,181.33,5.67588042]
[1755498847413,3.04,181.51,181.33,5.67588042]
[1755498847713,3.04,181.49,181.33,5.67588042]
[1755498848108,3.04,181.49,181.3,142.96]
[1755498848308,4.06590889,181.48,181.29,5.67588042]
[1755498848514,3.04,181.47,181.33,5.67588042]
[1755498848708,3.04,181.47,181.36,5.5103]
[1755498848908,3.04,181.47,181.28,142.96]
[1755498849103,3.04,181.47,181.3,5.67588042]
[1755498849308,3.04,181.47,181.32,5.5115]
[1755498849516,3.04,181.47,181.3,5.67588042]
[1755498849915,3.04,181.45,181.3,11.18788042]
[1755498850312,3.04,181.45,181.3,5.67588042]
[1755498850915,3.04,181.45,181.27,142.96]
[1755498851120,3.04,181.45,181.28,5.67588042]
[1755498851415,3.04,181.45,181.27,142.92]
[1755498851416,3.04,181.45,181.32,5.67588042]
[1755498852218,3.04,181.45,181.36,5.67588042]
[1755498852410,3.04,181.45,181.34,5.67588042]
[1755498853313,3.04,181.45,181.31,5.67588042]
[1755498854015,3.04,181.45,181.23,370.7]
[1755498854213,3.04,181.45,181.28,5.67588042]
[1755498854408,3.04,181.45,181.34,5.5108]
[1755498854610,3.04,181.45,181.36,5.67588042]
[1755498855010,3.04,181.45,181.4,5.509]
[1755498855210,3.04,181.45,181.36,5.67588042]
[1755498855412,3.04,181.45,181.4,5.5088]
[1755498855614,3.04,181.45,181.36,5.67588042]
[1755498856314,3.04,181.45,181.4,5.67588042]
[1755498857015,3.04,181.45,181.42,5.5083]
[1755498857218,3.04,181.45,181.4,5.67588042]
[1755498857920,3.04,181.5,181.4,5.67588042]
[1755498858817,3.04,181.5,181.39,5.67588042]
[1755498859222,3.04,181.5,181.43,5.67588042]
[1755498859419,142.86,181.61,181.5,5.506]
[1755498859618,3.04,181.64,181.47,5.67588042]
[1755498859809,3.04,181.62,181.47,5.67588042]
[1755498860616,3.04,181.62,181.52,5.5051]
[1755498861117,3.04,181.62,181.47,5.67588042]
[1755498861618,3.04,181.62,181.55,5.5045]
[1755498862024,3.04,181.62,181.51,5.67588042]
[1755498862315,3.04,181.62,181.47,5.67588042]
[1755498863116,3.04,181.62,181.51,5.5055]
[1755498863319,3.04,181.62,181.47,5.67588042]
[1755498864216,3.04,181.62,181.52,5.5054]
[1755498864521,3.04,181.62,181.47,5.67588042]
[1755498864720,3.04,181.62,181.55,5.5042]
[1755498865225,3.04,181.62,181.53,5.5049]
[1755498865419,3.04,181.62,181.47,5.67588042]
[1755498865822,3.04,181.62,181.54,5.5047]
[1755498866018,3.04,181.62,181.47,5.67588042]
[1755498866416,3.04,181.62,181.5,5.5058]
[1755498866622,3.04,181.62,181.44,5.67588042]
[1755498866815,4.04182279,181.61,181.44,5.67588042]
[1755498867018,3.08,181.6,181.44,5.67588042]
[1755498867213,3.08,181.58,181.4,5.67588042]
[1755498867823,3.08,181.58,181.36,513.16]
[1755498867824,3.08,181.58,181.42,5.67588042]
[1755498868128,3.08,181.56,181.45,5.5073]
[1755498868319,3.08,181.56,181.4,5.67588042]
[1755498868518,3.08,181.56,181.46,5.5071]
[1755498868926,3.08,181.56,181.4,5.67588042]
[1755498869318,3.08,181.56,181.44,5.67588042]
[1755498870127,3.08,181.56,181.48,5.5066]
[1755498870420,3.08,181.56,181.44,5.67588042]
[1755498871624,3.08,181.56,181.37,11.0198]
[1755498871625,3.08,181.56,181.48,5.67588042]
[1755498871825,0.95859846,181.63,181.53,5.5049]
[1755498872129,3.08,181.55,181.48,5.67588042]
[1755498872933,3.08,181.56,181.48,5.67588042]
[1755498873329,3.08,181.56,181.53,5.5051]
[1755498873526,0.95859846,181.63,181.53,5.5051]
[1755498873829,3.08,181.55,181.53,5.5049]
[1755498874139,3.08,181.55,181.48,5.67588042]
[1755498874430,3.08,181.58,181.48,5.67588042]
[1755498875023,3.08,181.58,181.54,5.5048]
[1755498875428,3.08,181.58,181.48,5.67588042]
[1755498877229,3.08,181.62,181.52,5.67588042]
[1755498877829,3.08,181.62,181.56,5.5042]
[1755498878134,3.08,181.62,181.52,5.67588042]
[1755498878333,3.08,181.61,181.56,5.67588042]
[1755498878831,3.08,181.63,181.62,5.5022]
[1755498879226,3.08,181.63,181.58,5.5034]
[1755498879631,3.08,181.63,181.52,5.67588042]
[1755498879828,3.08,181.63,181.55,5.5043]
[1755498880032,3.08,181.61,181.49,375.63588042]
[1755498880432,3.08,181.59,181.49,375.63588042]
[1755498881039,3.08,181.59,181.53,5.505]
[1755498881336,4.08511457,181.58,181.53,5.505]
[1755498881534,3.08,181.57,181.53,5.505]
[1755498882029,6.12136422,181.66,181.49,375.63588042]
[1755498882231,3.08,181.57,181.49,375.63588042]
[1755498882438,3.08,181.59,181.49,375.63588042]
[1755498882737,3.08,181.59,181.49,369.96]
[1755498882941,3.08,181.57,181.49,369.96]
[1755498883538,3.08,181.55,181.49,369.96]
[1755498884335,4.10308178,181.54,181.51,5.5055]
[1755498884539,3.08,181.52,181.51,5.5055]
[1755498884735,3.08,181.52,181.49,369.96]
[1755498884940,3.08,181.52,181.47,142.68]
[1755498885439,4.10373503,181.51,181.47,142.68]
[1755498885638,3.08,181.58,181.47,142.68]
[1755498885938,3.08,181.56,181.48,5.5064]
[1755498886139,3.08,181.54,181.47,142.68]
[1755498886337,3.08,181.52,181.47,142.68]
[1755498886638,6.12136422,181.58,181.47,142.68]
[1755498886639,3.08,181.5,181.47,142.68]
[1755498886836,3.08,181.6,181.47,142.68]
[1755498887039,3.08,181.58,181.47,142.68]
[1755498887338,3.08,181.56,181.47,142.68]
[1755498887531,3.9870495,181.55,181.47,142.68]
[1755498887733,3.08,181.56,181.5,5.67588042]
[1755498887930,3.99113911,181.55,181.5,5.67588042]
[1755498888126,3.08,181.56,181.5,5.67588042]
[1755498888331,3.08,181.54,181.5,5.67588042]
[1755498888527,6.12136422,181.63,181.5,5.67588042]
[1755498888528,3.08,181.56,181.5,5.67588042]
[1755498888734,3.08,181.55,181.54,5.5048]
[1755498888934,3.08,181.62,181.5,5.67588042]
[1755498889138,6.12136422,181.63,181.5,5.67588042]
[1755498889139,3.08,181.6,181.5,5.67588042]
[1755498889442,3.08,181.58,181.5,5.67588042]
[1755498889741,7.0737876,181.57,181.5,5.67588042]
[1755498889942,3.08,181.57,181.5,5.67588042]
[1755498890241,3.08,181.55,181.54,5.5046]
[1755498891443,6.12136422,181.64,181.5,5.67588042]
[1755498891444,3.08,181.63,181.5,5.67588042]
[1755498891735,3.08,181.61,181.54,5.67588042]
[1755498891937,10.15006082,181.71,181.62,5.5023]
[1755498891938,3.08,181.63,181.62,5.5023]
[1755498892346,2.96,181.65,181.58,5.67588042]
[1755498892737,2.96,181.65,181.64,5.5018]
[1755498896841,2.96,181.65,181.58,5.67588042]
[1755498897947,2.96,181.65,181.61,5.5026]
[1755498898644,2.96,181.65,181.6,5.503]
[1755498899044,2.96,181.65,181.58,5.67588042]
[1755498899246,2.96,181.65,181.52,369.92]
[1755498899440,2.96,181.65,181.55,142.64]
[1755498901544,2.96,181.65,181.58,5.67588042]
[1755498902141,2.96,181.74,181.58,5.67588042]
[1755498902346,2.96,181.72,181.58,5.67588042]
[1755498902555,2.96,181.7,181.64,5.5016]
[1755498902860,2.96,181.68,181.58,5.67588042]
[1755498904662,2.96,181.68,181.62,5.67588042]
[1755498906267,2.96,181.68,181.67,5.5009]
[1755498906453,2.96,181.7,181.63,142.62]
[1755498907167,2.96,181.7,181.69,5.5003]
[1755498907668,2.96,181.82,181.66,5.67588042]
[1755498907859,2.96,181.8,181.67,5.5007]
[1755498908061,2.96,181.78,181.66,5.67588042]
[1755498908264,2.96,181.76,181.66,5.67588042]
[1755498908466,3.99849092,181.75,181.66,5.67588042]
[1755498908665,2.96,181.76,181.66,5.67588042]
[1755498908862,2.96,181.74,181.66,5.67588042]
[1755498909461,2.96,181.74,181.69,5.5002]
[1755498909662,2.96,181.74,181.66,5.67588042]
[1755498909966,2.96,181.74,181.7,5.5]
[1755498910162,2.96,181.74,181.66,5.67588042]
[1755498910762,2.96,181.74,181.63,142.62]
[1755498911262,2.96,181.72,181.63,142.62]
[1755498912365,2.96,181.72,181.69,5.5003]
[1755498912665,2.96,181.72,181.66,5.67588042]
[1755498912966,2.96,181.71,181.63,142.62]
[1755498913170,2.96,181.71,181.62,5.67588042]
[1755498913856,2.96,181.71,181.66,5.501]
[1755498914266,2.96,181.71,181.67,5.5007]
[1755498914470,2.96,181.71,181.62,5.67588042]
[1755498915168,2.96,181.72,181.62,5.67588042]
[1755498915467,2.96,181.72,181.71,5.4997]
[1755498915969,2.96,181.72,181.66,5.67588042]
[1755498916975,2.96,181.72,181.67,5.5008]
[1755498917174,2.96,181.72,181.62,5.67588042]
[1755498918970,2.96,181.72,181.66,5.501]
[1755498919379,2.96,181.72,181.62,5.67588042]
[1755498919966,2.96,181.72,181.67,5.5007]
[1755498920472,2.96,181.72,181.62,5.67588042]
[1755498922471,2.96,181.72,181.58,5.67588042]
[1755498922975,2.96,181.72,181.64,5.5017]
[1755498923475,3.12,181.7,181.57,142.56]
[1755498923675,3.12,181.68,181.57,142.56]
[1755498923875,3.12,181.66,181.52,369.92]
[1755498924978,3.951368,181.65,181.52,369.92]
[1755498925173,3.951368,181.64,181.5,148.23588042]
[1755498925376,7.07105744,181.63,181.5,142.56]
[1755498925577,3.12,181.61,181.45,5.67588042]
[1755498925879,3.12,181.59,181.45,5.67588042]
[1755498926377,3.12,181.59,181.44,5.67588042]
[1755498926772,3.12,181.59,181.52,5.5052]
[1755498926975,3.12,181.59,181.44,5.67588042]
[1755498927377,3.12,181.59,181.49,5.5062]
[1755498927578,3.12,181.59,181.44,5.67588042]
[1755498928784,3.12,181.59,181.43,142.56]
[1755498928969,3.12,181.59,181.48,5.5064]
[1755498929173,3.12,181.59,181.43,142.56]
[1755498930078,3.12,181.59,181.44,5.67588042]
[1755498930575,3.12,181.59,181.52,5.5052]